bitfinex-derivatives/quotes_ETHF0:USTF0_20250831
["timestamp","ask_amount","ask_price","bid_price","bid_amount"]
[1756665111496,0.1993,4479.9,4479.8,0.4821]
[1756665111701,0.1993,4479.2,4479.1,0.4821]
[1756665111999,3.2078,4480.1,4479.2,0.2986]
[1756665112204,0.2802,4480.0,4479.2,0.2986]
[1756665113996,0.4795,4479.3,4479.2,0.4821]
[1756665115597,0.4795,4479.3,4479.2,0.225]
[1756665116902,0.4795,4479.3,4479.2,0.7071]
[1756665117799,3.2078,4479.6,4479.3,0.2986]
[1756665118000,3.488,4480.3,4479.6,0.2986]
[1756665118203,0.1993,4479.9,4479.8,0.4821]
[1756665118403,0.4795,4479.9,4479.8,0.4821]
[1756665119199,3.2078,4480.3,4479.9,0.2986]
[1756665119503,3.6873,4480.3,4480.2,0.4821]
[1756665119705,3.6873,4480.3,4480.2,0.7071]
[1756665121204,3.6873,4480.3,4480.2,0.4821]
[1756665122806,3.6873,4480.3,4480.2,0.1835]
[1756665123103,3.6873,4480.3,4480.0,0.225]
[1756665125108,3.4071,4480.3,4480.2,0.4821]
[1756665125704,3.6873,4480.3,4480.2,0.4821]
[1756665127604,3.2078,4480.8,4480.3,0.2986]
[1756665127805,0.2802,4481.2,4481.1,0.4827]
[1756665128006,0.4707,4481.2,4481.1,0.4827]
[1756665128610,0.225,4482.0,4480.9,0.225]
[1756665128611,0.4864,4481.7,4481.6,0.1873]
[1756665128809,0.4864,4481.7,4481.6,0.4865]
[1756665129315,0.2959,4482.3,4481.7,0.2992]
[1756665129910,0.1905,4481.8,4481.0,3.507]
[1756665130121,0.2959,4481.5,4481.0,3.3951]
[1756665130410,0.2959,4482.3,4481.1,0.2992]
[1756665136229,0.4864,4482.3,4482.2,0.4865]
[1756665137024,3.2078,4482.4,4481.8,0.226]
[1756665137025,3.2078,4482.4,4482.3,0.4865]
[1756665137530,3.2078,4483.0,4482.9,0.4865]
[1756665139838,3.3983,4483.0,4482.9,0.4865]
[1756665140340,0.1905,4483.0,4482.9,0.4865]
[1756665140539,0.2959,4483.2,4483.0,0.2992]
[1756665140738,0.2959,4483.2,4483.1,0.4865]
[1756665140936,0.4864,4483.2,4483.1,0.4865]
[1756665141138,3.2078,4483.7,4483.5,0.1873]
[1756665141139,0.4864,4483.6,4483.5,0.1873]
[1756665141339,3.2078,4483.7,4483.5,0.1873]
[1756665141541,3.2078,4483.7,4483.6,0.7125]
[1756665141842,3.6942,4483.7,4483.6,0.7125]
[1756665142139,0.1905,4483.7,4483.6,0.7125]
[1756665142339,0.4864,4483.7,4483.6,0.7125]
[1756665142639,0.2959,4484.4,4483.7,0.2992]
[1756665143036,0.4864,4484.4,4484.3,0.1873]
[1756665143240,0.4864,4484.4,4483.7,0.2992]
[1756665143940,0.4864,4483.2,4483.1,0.4865]
[1756665144235,0.4864,4483.2,4483.1,0.7125]
[1756665144943,0.4864,4483.2,4483.1,0.1873]
[1756665145246,0.4864,4483.2,4483.1,0.226]
[1756665145747,0.4864,4483.2,4483.1,0.7125]
[1756665146047,0.1905,4483.2,4483.1,0.7125]
[1756665146547,0.4864,4483.2,4483.1,0.4865]
[1756665146737,0.4864,4483.2,4483.1,0.7125]
[1756665150247,0.4864,4483.2,4483.1,0.4865]
[1756665150545,0.4864,4483.2,4483.1,0.226]
[1756665151540,0.1905,4483.2,4482.6,0.2992]
[1756665151747,0.4864,4482.7,4482.6,0.4865]
[1756665151947,0.4864,4482.7,4482.6,0.7125]
[1756665155352,0.2959,4483.4,4482.7,0.2992]
[1756665155650,0.4864,4482.8,4482.7,0.4865]
[1756665155851,0.4864,4482.8,4482.7,0.7125]
[1756665161559,0.4626,4484.0,4483.2,0.2864]
[1756665161856,0.4626,4484.0,4483.3,0.226]
[1756665162056,0.4626,4484.0,4483.4,0.226]
[1756665163061,3.2078,4483.6,4483.5,0.226]
[1756665163262,3.6704,4483.6,4483.5,0.226]
[1756665163654,3.6704,4483.6,4482.5,3.2078]
[1756665163851,3.2078,4483.6,4482.6,0.5124]
[1756665164160,0.4626,4482.8,4482.7,0.4873]
[1756665165263,0.4626,4482.8,4482.7,0.7133]
[1756665165963,0.2753,4483.1,4482.7,0.4269]
[1756665166257,0.4626,4483.1,4483.0,0.2009]
[1756665166462,0.4626,4483.1,4483.0,0.7133]
[1756665166960,0.4626,4483.1,4483.0,0.4873]
[1756665167160,0.4626,4483.1,4483.0,0.7133]
[1756665169854,0.2753,4483.4,4483.0,0.7133]
[1756665170160,0.1873,4483.2,4483.1,0.2864]
[1756665170361,0.4626,4483.2,4483.1,0.4873]
[1756665171161,0.1873,4483.2,4483.1,0.4873]
[1756665171464,0.4626,4483.2,4483.1,0.4873]
[1756665173361,0.2753,4483.5,4483.1,0.4873]
[1756665173561,0.2753,4483.5,4483.2,0.2864]
[1756665173766,0.4626,4483.5,4483.4,0.2009]
[1756665174063,0.4626,4483.5,4483.4,0.4873]
[1756665179368,0.4626,4483.5,4483.4,0.2009]
[1756665179965,0.4626,4483.5,4483.0,0.226]
[1756665180170,0.4626,4483.5,4483.1,0.2864]
[1756665180369,0.2753,4483.4,4482.5,3.2078]
[1756665180576,0.4626,4482.6,4482.5,3.2078]
[1756665180869,0.4626,4482.6,4482.5,3.9211]
[1756665182776,3.2078,4483.6,4482.5,3.9211]
[1756665182970,0.87099768,4483.5,4482.6,0.2864]
[1756665183169,0.2753,4483.5,4482.6,0.2864]
[1756665183370,0.2753,4483.5,4482.5,3.4338]
[1756665183371,3.2078,4483.6,4483.4,0.4873]
[1756665183672,3.2078,4483.6,4483.5,0.7133]
[1756665184072,3.6704,4483.6,4483.5,0.7133]
[1756665185273,3.2078,4484.1,4483.5,0.4269]
[1756665185469,3.6704,4484.1,4484.0,0.2009]
[1756665185671,3.6704,4484.1,4484.0,0.4873]
[1756665186473,0.4626,4484.1,4484.0,0.4873]
[1756665187076,3.6704,4484.1,4484.0,0.4873]
[1756665187575,0.4626,4484.1,4484.0,0.4873]
[1756665188282,3.6704,4484.1,4484.0,0.4873]
[1756665188481,3.6704,4484.1,4483.5,0.5159]
[1756665188674,0.4726,4483.6,4483.5,0.6998]
[1756665188874,0.4726,4483.6,4483.5,0.4738]
[1756665189078,0.4726,4483.6,4483.5,0.6998]
[1756665189279,0.4726,4483.6,4483.5,0.4738]
[1756665189481,0.4726,4483.6,4483.5,0.6998]
[1756665189680,0.278,4484.0,4483.6,0.2899]
[1756665189882,0.4726,4484.0,4483.9,0.1839]
[1756665190180,0.4726,4484.0,4483.9,0.4738]
[1756665196585,0.1946,4484.0,4483.9,0.4738]
[1756665196886,0.4726,4484.0,4483.9,0.4738]
[1756665198184,3.2078,4484.8,4483.5,0.226]
[1756665198185,3.2078,4484.2,4484.1,0.1839]
[1756665198488,3.2078,4484.8,4484.1,0.1839]
[1756665198785,3.4024,4484.3,4484.2,0.4738]
[1756665199186,0.4726,4484.3,4484.2,0.4738]
[1756665199887,0.278,4484.7,4484.5,0.1839]
[1756665200184,0.278,4484.7,4484.6,0.4738]
[1756665200185,0.4726,4484.7,4484.6,0.4738]
[1756665200979,3.2078,4484.8,4484.6,0.4738]
[1756665201186,3.2078,4484.8,4484.7,0.4738]
[1756665201586,0.4726,4485.1,4485.0,0.1839]
[1756665201883,0.4726,4485.1,4485.0,0.4738]
[1756665203589,0.4726,4485.1,4485.0,0.1839]
[1756665204587,0.4726,4485.1,4484.4,0.2899]
[1756665207287,3.2078,4484.8,4484.2,0.225]
[1756665207591,0.4726,4484.3,4484.2,0.225]
[1756665211487,3.6804,4484.3,4484.2,0.225]
[1756665211888,0.1946,4483.9,4483.8,32.4069]
[1756665212087,0.4726,4483.9,4483.8,32.342]
[1756665212287,0.4726,4483.9,4483.8,32.6319]
[1756665213988,0.4726,4483.9,4483.8,32.342]
[1756665214188,0.4726,4483.9,4483.5,0.2899]
[1756665214389,3.4858,4483.8,4483.2,0.2899]
[1756665214593,0.4726,4483.3,4483.2,0.4738]
[1756665214789,0.4726,4483.3,4483.2,0.6988]
[1756665214992,0.4726,4483.3,4483.2,0.4738]
[1756665215192,0.4726,4483.3,4483.2,0.6988]
[1756665215388,0.4726,4483.3,4483.2,0.4738]
[1756665215695,0.4726,4483.3,4482.3,32.113]
[1756665215696,0.4726,4482.8,4482.7,0.4738]
[1756665215896,0.4726,4482.8,4482.7,0.4089]
[1756665216486,0.4726,4482.8,4482.7,0.6988]
[1756665218198,0.1875,4482.5,4482.4,0.4865]
[1756665218396,0.4842,4482.5,4482.4,0.7125]
[1756665221004,0.1875,4482.5,4482.3,32.113]
[1756665221297,0.2967,4482.4,4482.3,32.113]
[1756665221497,0.2967,4482.4,4482.3,32.339]
[1756665222291,0.2967,4482.4,4481.7,0.4865]
[1756665222292,0.1875,4481.8,4481.7,0.4865]
[1756665222494,0.2967,4481.7,4481.1,3.2078]
[1756665222793,0.4842,4481.3,4481.2,0.4153]
[1756665223500,0.4842,4481.3,4481.2,0.7125]
[1756665226301,0.4842,4481.3,4481.2,0.4865]
[1756665226701,0.4842,4481.3,4481.2,0.4153]
[1756665227393,3.2078,4481.7,4481.2,0.7125]
[1756665227593,3.2078,4481.7,4481.6,0.1893]
[1756665227800,3.2078,4481.7,4481.6,0.7125]
[1756665229901,3.5045,4482.2,4481.6,0.4153]
[1756665230101,3.692,4482.2,4482.1,0.1893]
[1756665230299,3.3953,4482.2,4482.1,0.7125]
[1756665230503,3.2078,4482.2,4482.1,0.7125]
[1756665231798,3.692,4482.2,4482.1,0.7125]
[1756665232004,3.692,4482.2,4482.1,0.226]
[1756665232601,3.692,4482.2,4482.1,0.7125]
[1756665234107,3.692,4482.2,4482.1,0.4153]
[1756665236309,3.692,4482.2,4482.1,0.7125]
[1756665239519,3.2078,4482.2,4482.1,0.7125]
[1756665239718,3.2078,4482.7,4482.1,0.4153]
[1756665239920,3.3953,4482.7,4482.6,0.1893]
[1756665240111,3.3953,4482.7,4482.6,0.4865]
[1756665240619,3.692,4482.7,4482.6,0.4865]
[1756665241419,3.692,4482.7,4482.3,0.2972]
[1756665241618,3.692,4482.7,4482.4,0.225]
[1756665242418,0.1875,4481.7,4481.6,3.3971]
[1756665242614,0.1875,4481.2,4481.1,3.3971]
[1756665242812,0.4842,4481.2,4481.1,3.9203]
[1756665243915,3.2078,4482.2,4482.0,0.1893]
[1756665243916,0.4842,4482.1,4482.0,0.1893]
[1756665244113,0.4842,4482.1,4482.0,0.4153]
[1756665244319,0.4842,4482.1,4482.0,0.7125]
[1756665246618,3.692,4482.2,4482.1,0.2972]
[1756665246816,3.692,4482.2,4482.1,0.4865]
[1756665247214,0.4842,4482.2,4482.1,0.4865]
[1756665248014,3.2078,4482.7,4482.1,0.4865]
[1756665248317,3.2078,4482.7,4482.6,0.4694]
[1756665248516,3.2078,4483.2,4482.6,0.4694]
[1756665248722,3.2078,4483.2,4483.1,0.1842]
[1756665249016,3.506,4483.7,4483.2,0.2852]
[1756665249222,3.6892,4483.7,4483.6,0.4694]
[1756665249520,3.391,4483.7,4483.6,0.4694]
[1756665249823,3.6892,4483.7,4483.6,0.4694]
[1756665251925,0.4814,4483.7,4483.6,0.4694]
[1756665254513,3.2078,4484.2,4483.6,0.4694]
[1756665254720,0.2982,4484.7,4483.7,0.2852]
[1756665255421,0.1832,4483.8,4483.7,0.4694]
[1756665255623,0.4814,4483.8,4483.7,0.4694]
[1756665255821,0.4814,4483.8,4483.7,0.6954]
[1756665256528,0.1832,4483.8,4483.7,0.6954]
[1756665256826,0.1832,4483.9,4483.8,0.4694]
[1756665257216,0.4814,4483.9,4483.8,0.4694]
[1756665258529,0.4814,4483.9,4483.8,0.6954]
[1756665259828,0.4814,4483.9,4483.8,0.4694]
[1756665260127,0.4814,4483.9,4483.8,0.6954]
[1756665261130,0.2982,4484.2,4483.8,0.6954]
[1756665261330,0.2982,4484.2,4483.9,0.2852]
[1756665261533,0.4814,4484.2,4484.1,0.4694]
[1756665262028,3.6892,4484.8,4484.7,0.1842]
[1756665262234,3.6892,4484.8,4484.7,0.6954]
[1756665265629,3.6892,4484.8,4484.7,0.4102]
[1756665265827,3.6892,4484.8,4484.7,0.226]
[1756665266429,3.6892,4484.8,4484.7,0.6954]
[1756665267035,3.6892,4484.8,4484.7,0.4102]
[1756665268139,3.6892,4484.8,4484.7,0.226]
[1756665272847,0.4814,4484.8,4484.7,0.226]
[1756665273448,0.4814,4484.8,4484.7,0.4102]
[1756665273646,0.4814,4484.8,4484.7,0.6954]
[1756665278754,0.4814,4484.8,4484.7,0.226]
[1756665279557,0.4814,4484.8,4484.7,0.4234]
[1756665280258,0.4814,4484.8,4484.7,0.725]
[1756665282655,0.1832,4484.8,4484.7,0.725]
[1756665282954,0.4758,4485.5,4485.4,0.499]
[1756665283154,0.4758,4485.5,4485.4,0.724]
[1756665284849,3.2078,4486.3,4485.4,0.724]
[1756665285054,0.2745,4486.1,4485.5,0.3016]
[1756665285662,0.2013,4485.6,4485.5,0.499]
[1756665285866,0.4758,4485.6,4485.5,0.499]
[1756665287763,0.2013,4485.6,4485.5,0.499]
[1756665288663,0.4758,4485.6,4485.5,0.499]
[1756665291269,0.2745,4486.2,4485.5,0.1974]
[1756665291458,0.4758,4486.2,4486.1,0.499]
[1756665291764,0.4758,4486.2,4486.1,0.724]
[1756665291966,0.4758,4486.2,4486.1,0.225]
[1756665292464,0.4758,4486.2,4486.1,0.4224]
[1756665292669,0.4758,4486.2,4486.1,0.724]
[1756665293360,3.2078,4486.8,4486.1,0.724]
[1756665293562,0.4758,4486.7,4486.6,0.1974]
[1756665293862,0.4758,4486.7,4486.6,0.724]
[1756665302870,0.2745,4487.1,4486.6,0.724]
[1756665303069,0.2745,4487.6,4486.7,0.3016]
[1756665303468,0.22286,4487.5,4486.7,0.3016]
[1756665303675,0.4758,4486.8,4486.7,0.499]
[1756665306980,0.4758,4486.8,4485.3,1.434]
[1756665306981,0.4758,4486.0,4485.9,3.2078]
[1756665307181,0.4758,4486.0,4485.9,3.4328]
[1756665310187,0.4758,4486.0,4485.9,3.9074]
[1756665316486,0.4794,4486.9,4486.8,0.1866]
[1756665316782,0.70229,4486.9,4486.8,0.6888]
[1756665316982,0.4794,4486.9,4486.8,0.6888]
[1756665317880,3.2078,4487.0,4486.8,0.4116]
[1756665318082,3.2078,4487.0,4486.9,0.2772]
[1756665318282,3.2078,4487.0,4486.9,0.4638]
[1756665319486,3.6872,4487.0,4486.9,0.4638]
[1756665320080,3.2078,4487.5,4487.0,0.2772]
[1756665320281,3.6872,4487.5,4487.4,0.4638]
[1756665320489,3.6872,4487.5,4487.4,0.6898]
[1756665323589,3.6872,4487.5,4487.4,0.4126]
[1756665323988,3.6872,4487.5,4487.4,0.226]
[1756665324484,3.6872,4487.5,4486.4,3.2078]
[1756665324685,0.4794,4486.7,4486.6,0.4638]
[1756665324988,0.2943,4487.0,4486.6,0.4638]
[1756665325192,0.2943,4487.4,4486.7,0.2772]
[1756665325582,0.1851,4486.8,4486.7,0.4638]
[1756665325783,0.4794,4486.8,4486.7,0.4638]
[1756665330192,0.2943,4487.4,4486.8,0.2772]
[1756665330594,0.4794,4486.9,4486.8,0.4638]
[1756665337795,0.1914,4486.9,4486.8,0.4638]
[1756665337998,0.4915,4486.9,4486.8,0.4638]
[1756665340397,0.4915,4486.9,4486.5,0.2932]
[1756665340590,0.4915,4486.9,4486.8,0.225]
[1756665341098,0.4915,4486.9,4486.8,0.7012]
[1756665348295,0.1914,4486.9,4486.8,0.7012]
[1756665348695,0.4915,4486.9,4486.8,0.7012]
[1756665349199,0.3001,4487.2,4486.8,0.7012]
[1756665349502,0.4915,4487.4,4487.3,0.4762]
[1756665349690,0.4915,4487.4,4487.3,0.7012]
[1756665362009,0.1914,4487.4,4487.3,0.408]
[1756665362210,0.4915,4487.4,4487.3,0.408]
[1756665362613,0.4915,4487.4,4487.3,0.7012]
[1756665367926,3.2078,4488.0,4487.3,0.7012]
[1756665368127,0.81803981,4487.9,4487.4,0.2846]
[1756665368427,0.42203,4487.9,4487.8,0.475]
[1756665368725,0.79440592,4487.9,4487.8,0.475]
[1756665368927,1.30092593,4487.9,4487.8,0.475]
[1756665369227,1.30092593,4487.9,4487.5,0.2846]
[1756665369430,0.1992,4487.4,4487.3,0.4154]
[1756665369621,0.4829,4487.4,4487.3,0.4154]
[1756665369925,0.4829,4487.4,4487.3,0.7]
[1756665370622,0.4829,4487.4,4487.3,0.475]
[1756665370823,0.4829,4487.4,4487.3,0.7]
[1756665374129,0.1992,4486.3,4486.2,0.1904]
[1756665374428,0.4829,4486.3,4486.2,0.7]
[1756665374627,0.4829,4486.3,4486.2,0.4154]
[1756665374827,0.4829,4486.3,4486.2,0.225]
[1756665375326,0.4829,4486.3,4486.2,0.7]
[1756665382437,3.2078,4486.5,4486.2,0.4154]
[1756665382632,0.2837,4487.6,4487.1,0.2846]
[1756665382832,0.4829,4487.6,4487.5,0.475]
[1756665384234,0.1992,4486.8,4486.7,0.4154]
[1756665384430,0.2837,4487.0,4486.8,0.2846]
[1756665384732,0.2837,4487.0,4486.3,0.2846]
[1756665384934,0.1992,4485.6,4485.5,3.6828]
[1756665385231,0.4829,4485.6,4485.5,0.4154]
[1756665385435,0.4829,4485.6,4485.5,0.225]
[1756665388535,3.2078,4486.0,4484.9,0.2846]
[1756665388536,0.1992,4485.1,4484.9,0.2846]
[1756665388735,0.1992,4484.5,4484.4,35.5894]
[1756665389038,0.4829,4484.5,4484.4,32.6066]
[1756665389240,3.2078,4485.0,4484.4,32.6066]
[1756665389241,3.2078,4485.0,4484.9,0.1904]
[1756665389440,3.2078,4485.0,4484.9,0.7]
[1756665389639,3.2078,4485.6,4484.9,0.4154]
[1756665389936,0.4829,4485.0,4484.9,0.1904]
[1756665390242,0.4829,4485.0,4484.9,0.4154]
[1756665390435,0.1992,4485.0,4484.9,0.7]
[1756665391031,0.2837,4485.3,4484.9,0.7]
[1756665391230,3.2078,4485.6,4485.5,0.1904]
[1756665391440,3.2078,4485.6,4485.5,0.475]
[1756665391941,3.2078,4485.6,4485.5,4.475]
[1756665392629,0.2837,4486.5,4485.6,0.2846]
[1756665392833,0.4829,4485.8,4485.7,0.1904]
[1756665393542,0.4829,4485.8,4485.7,0.7]
[1756665395741,0.4829,4485.8,4485.7,0.475]
[1756665395941,0.4829,4485.8,4485.7,0.7]
[1756665396739,0.2837,4486.6,4485.7,0.4154]
[1756665397041,0.2837,4486.6,4485.8,0.2846]
[1756665397341,0.1992,4485.9,4485.8,0.475]
[1756665397542,0.4829,4485.9,4485.8,0.475]
[1756665399232,3.2078,4486.7,4485.8,0.1904]
[1756665399535,0.483,4485.9,4485.8,0.4744]
[1756665400741,3.2078,4486.7,4485.8,0.1904]
[1756665400939,0.483,4486.6,4486.5,0.4803]
[1756665401841,0.483,4486.6,4486.5,0.1963]
[1756665403148,0.483,4486.6,4486.5,0.4803]
[1756665404143,0.483,4486.6,4486.2,0.284]
[1756665405944,0.483,4486.6,4485.8,0.284]
[1756665406142,3.2078,4486.6,4485.7,0.225]
[1756665406342,0.483,4485.8,4485.7,0.4213]
[1756665406544,0.483,4485.8,4485.7,0.7053]
[1756665407336,3.2078,4486.1,4485.7,0.4213]
[1756665407548,0.483,4485.9,4485.8,0.4803]
[1756665408348,3.2078,4486.1,4485.8,0.4803]
[1756665408549,3.6908,4486.7,4486.6,0.4803]
[1756665409443,3.2078,4486.7,4486.6,0.4803]
[1756665409643,0.185,4486.8,4486.7,0.1963]
[1756665409847,0.483,4486.8,4486.7,0.4803]
[1756665410849,0.185,4486.8,4486.7,0.4803]
[1756665411647,3.2078,4487.2,4487.1,0.1963]
[1756665411952,3.2078,4487.2,4487.1,0.4803]
[1756665413854,3.3928,4487.2,4487.1,0.4803]
[1756665414048,3.6908,4487.2,4487.1,0.4803]
[1756665416853,3.3928,4487.2,4486.3,1.434]
[1756665417155,0.483,4487.1,4487.0,0.7053]
[1756665419247,3.2078,4487.7,4487.1,0.284]
[1756665419444,0.483,4487.2,4487.1,0.4803]
[1756665423258,3.3928,4487.2,4486.2,4.6418]
[1756665423453,0.483,4486.4,4486.3,0.7053]
[1756665431460,0.183,4486.1,4486.0,0.291]
[1756665431661,0.4697,4486.1,4486.0,0.7114]
[1756665433963,3.2078,4486.7,4486.6,0.1954]
[1756665434163,3.2078,4486.7,4486.6,0.7114]
[1756665436466,3.6775,4486.7,4486.6,0.7114]
[1756665438267,3.2078,4486.7,4486.6,0.7114]
[1756665438664,3.2078,4487.4,4486.6,0.4204]
[1756665438868,3.2078,4487.4,4486.7,0.291]
[1756665439165,0.4697,4486.8,4486.7,0.4864]
[1756665440963,3.2078,4487.4,4486.7,0.4864]
[1756665441169,0.183,4487.3,4487.2,0.1954]
[1756665441364,0.4697,4487.3,4487.2,0.7114]
[1756665442569,0.4697,4487.3,4487.2,0.4204]
[1756665443174,0.4697,4487.3,4487.2,0.225]
[1756665443872,0.4697,4487.3,4487.2,0.7114]
[1756665455189,0.2867,4487.8,4487.3,0.291]
[1756665455387,0.4697,4487.8,4487.7,0.4864]
[1756665455682,0.183,4487.9,4487.5,3.2078]
[1756665455889,0.4697,4487.4,4487.3,0.4864]
[1756665456091,0.4697,4487.4,4487.3,0.7114]
[1756665456486,0.4697,4487.4,4487.3,0.225]
[1756665457389,0.183,4487.4,4487.2,0.225]
[1756665457586,0.4697,4487.3,4487.2,0.225]
[1756665459188,0.4697,4487.3,4487.2,0.7059]
[1756665459882,0.4697,4487.3,4487.2,0.4204]
[1756665460992,0.4697,4487.3,4487.2,0.7059]
[1756665464196,0.2022,4486.7,4486.6,0.4721]
[1756665464396,0.4758,4486.7,4486.6,0.6971]
[1756665466599,0.2736,4487.3,4486.7,0.2855]
[1756665466789,0.4758,4487.3,4487.2,0.1866]
[1756665466990,0.4758,4487.3,4487.2,0.4116]
[1756665468696,0.4758,4487.3,4487.2,0.6971]
[1756665472601,0.2022,4487.3,4487.2,0.6971]
[1756665473000,0.4758,4487.3,4487.2,0.6971]
[1756665477006,0.4758,4487.3,4487.2,0.4721]
[1756665477305,0.4758,4487.3,4487.2,0.6971]
[1756665478408,0.2736,4487.9,4487.3,0.2855]
[1756665478603,3.2078,4488.1,4487.8,0.1866]
[1756665478801,0.2736,4488.0,4487.9,0.2855]
[1756665478996,0.4758,4488.0,4487.9,0.4721]
[1756665480508,3.41,4488.1,4488.0,0.2855]
[1756665480703,3.6836,4488.1,4488.0,0.4721]
[1756665482506,3.6836,4488.1,4487.8,0.5105]
[1756665482703,0.2022,4487.9,4487.8,0.5105]
[1756665482907,0.4758,4487.9,4487.8,0.6971]
[1756665484910,0.4758,4487.9,4487.8,0.4721]
[1756665485111,0.4758,4487.9,4487.1,0.4116]
[1756665485112,0.4758,4487.2,4487.1,0.4116]
[1756665485615,0.4758,4487.2,4487.1,0.6971]
[1756665489018,0.4758,4487.2,4487.1,0.4116]
[1756665489218,0.4758,4487.2,4486.8,0.3042]
[1756665489513,0.4758,4487.2,4487.1,0.225]
[1756665489718,0.2022,4487.2,4487.1,0.225]
[1756665489922,0.495,4487.2,4487.1,0.225]
[1756665491514,0.495,4487.2,4487.1,0.7296]
[1756665492422,0.2022,4487.2,4487.1,0.7296]
[1756665492721,3.2078,4487.6,4487.1,0.4254]
[1756665493016,0.4816,4487.3,4487.2,0.5046]
[1756665493816,3.2078,4487.6,4487.2,0.5046]
[1756665494022,3.6894,4487.6,4487.5,0.5046]
[1756665498624,3.6894,4487.6,4486.5,1.434]
[1756665498925,0.2928,4487.5,4486.7,0.3042]
[1756665499525,0.1888,4487.0,4486.9,0.5046]
[1756665499714,0.4816,4487.0,4486.9,0.5046]
[1756665500323,0.1888,4487.0,4486.9,0.5046]
[1756665500526,3.3966,4487.6,4487.5,0.5046]
[1756665501225,3.6894,4487.6,4487.5,0.2004]
[1756665502022,3.6894,4487.6,4487.5,0.5046]
[1756665503024,3.6894,4487.6,4487.0,3.2078]
[1756665503217,0.2928,4487.5,4487.1,0.225]
[1756665503429,0.1888,4487.2,4487.1,0.225]
[1756665503623,0.4816,4487.2,4487.1,0.225]
[1756665505428,0.4816,4487.2,4487.1,0.7296]
[1756665505728,0.4816,4487.2,4487.1,0.225]
[1756665506023,0.4816,4487.2,4486.7,0.3042]
[1756665506222,0.2928,4487.5,4486.9,0.3042]
[1756665506419,0.4816,4487.5,4487.4,0.2004]
[1756665506621,0.4816,4487.5,4487.0,0.3042]
[1756665506827,0.4816,4487.5,4486.7,0.3042]
[1756665507031,0.4816,4487.5,4486.8,0.225]
[1756665507618,0.4816,4487.5,4486.7,0.3042]
[1756665507820,0.4816,4487.5,4486.8,0.225]
[1756665509631,0.4816,4487.5,4486.9,0.3042]
[1756665510129,0.4816,4487.5,4487.4,0.5046]
[1756665510820,0.4816,4487.5,4487.4,0.2004]
[1756665512032,0.4816,4487.5,4487.1,0.3042]
[1756665512225,0.4816,4487.5,4486.8,0.225]
[1756665512426,0.4816,4487.5,4486.9,0.3042]
[1756665514531,0.4816,4487.5,4486.8,0.225]
[1756665514728,0.2928,4487.4,4486.9,0.225]
[1756665514928,0.4816,4486.6,4486.1,32.3982]
[1756665515133,0.1888,4486.4,4486.3,0.5046]
[1756665515431,0.4816,4486.4,4486.3,0.5046]
[1756665515632,0.4816,4486.4,4486.3,0.7296]
[1756665516032,0.4816,4486.4,4486.3,0.4254]
[1756665516331,0.4816,4486.4,4486.3,0.7296]
[1756665516832,0.4816,4486.4,4486.3,0.225]
[1756665517733,0.4816,4486.4,4486.3,0.7296]
[1756665519032,0.485,4485.9,4485.8,0.4964]
[1756665519235,0.485,4485.9,4485.8,0.7214]
[1756665519622,0.485,4485.9,4485.8,0.4237]
[1756665519926,0.485,4485.9,4485.8,0.7214]
[1756665522035,3.2078,4486.6,4485.9,0.2977]
[1756665522236,0.485,4486.5,4486.4,0.1987]
[1756665522436,0.485,4486.5,4486.2,0.2977]
[1756665523539,0.485,4486.5,4485.8,0.225]
[1756665523540,0.485,4486.5,4485.9,0.2977]
[1756665524944,0.485,4485.5,4485.4,0.4964]
[1756665525142,0.1995,4485.5,4485.3,0.225]
[1756665525344,0.485,4485.4,4485.3,0.225]
[1756665526038,0.485,4485.4,4485.3,0.4237]
[1756665526345,0.485,4485.4,4485.3,0.7214]
[1756665526941,0.485,4485.4,4485.3,0.225]
[1756665527543,0.485,4485.4,4485.3,0.4237]
[1756665527749,0.485,4485.4,4485.3,0.7214]
[1756665528852,3.2078,4486.3,4486.2,0.1987]
[1756665529052,0.1995,4486.3,4486.2,0.7214]
[1756665529255,3.6928,4486.3,4486.2,0.225]
[1756665533257,3.6928,4486.3,4485.8,0.2977]
[1756665533559,3.6928,4486.3,4485.6,0.225]
[1756665534357,0.1995,4485.7,4485.6,0.225]
[1756665534559,0.485,4485.7,4485.6,0.225]
[1756665534751,0.2855,4485.6,4485.1,0.225]
[1756665534953,0.1995,4485.2,4485.1,0.7214]
[1756665535152,0.485,4485.2,4485.1,0.7214]
[1756665535550,0.485,4485.2,4485.1,0.4237]
[1756665536254,0.1995,4484.7,4484.5,0.2977]
[1756665536455,0.485,4484.6,4484.5,0.4237]
[1756665536651,0.485,4484.6,4484.5,0.7214]
[1756665536861,3.2078,4484.8,4484.6,0.2977]
[1756665537055,3.2078,4484.8,4484.5,0.225]
[1756665537056,3.2078,4484.8,4484.7,0.1987]
[1756665537255,3.2078,4484.8,4484.7,0.4964]
[1756665537663,3.6928,4484.8,4484.7,0.4964]
[1756665538365,3.6928,4484.8,4484.7,0.1987]
[1756665538564,3.6928,4484.8,4484.6,0.2977]